{"text_format":"1","workbook":"xlsx","n_sheets":1,"sheets":["Schmutz D"],"not_rendered":{"charts":0,"images":1,"macros":0,"external_links":0,"defined_names":0,"comments":0,"pivot_tables":0},"unopened":[],"bounds":{"document_bytes":16777216,"sheet_cells":100000,"rows_first":2000,"rows_last":500,"rows_between":2000,"halvings":0,"cell_chars":16384,"cell_head_chars":4096},"cells_cut":0,"cells_raw":0,"read":"whole","date_system":"1900"}

{"sheet":"Schmutz D","index":0,"n_rows":36,"n_cols":22,"rows_kept":36,"cut":false,"hidden":false,"merged":[[4,21,5,21],[4,0,5,2],[1,5,1,7],[1,10,1,11],[6,0,7,2],[35,3,35,9],[35,12,35,18],[1,8,1,9],[1,12,1,20],[2,8,2,9],[1,0,1,2],[2,0,2,2],[2,5,2,7],[2,10,2,21],[3,0,3,2],[3,3,3,21],[4,3,5,11],[4,12,5,20],[1,3,1,4],[2,3,2,4]]}
[]
[" TIEFBAU  BIEL        ",null,null,"BG-Nr.",null,null,null,null,"Parz.-Nr.",null,null,null,"WAS = Schmutzwasser / Mischwasser                    ",null,null,null,null,null,null,null,null,1]
[" Liegenschaftsentwässerung",null,null,"GSG-Nr.",null,null,null,null,"Strasse"]
[" GRUNDEIGENTÜMER"]
["                              ",null,null,"IST-ZUSTAND",null,null,null,null,null,null,null,null,"NEUER ZUSTAND",null,null,null,null,null,null,null,null,"kontr."]
[]
["Geschoss",null,null,"UG","EG",1,2,3,4,null,"Anz.Entw.","Total","UG","EG",1,2,3,4,null,"Anz.Entw.","Total"]
[null,null,null,null,null,null,null,null,null,null,"Geg.","SW",null,null,null,null,null,null,null,"Geg.","SW"]
["Wb","Wandbecken, Waschtisch bis 3 Hahnen",0.5,null,null,null,null,null,null,null,{"$f":"SUM(D9:J9)","v":0},{"$f":"K9*C9","v":0},null,null,null,null,null,null,null,{"$f":"SUM(M9:S9)","v":0},{"$f":"T9*C9","v":0}]
[null,"                                        "]
[null,"                                               "]
["Bd","Badewanne                    ",1,null,null,null,null,null,null,null,{"$f":"SUM(D12:J12)","v":0},{"$f":"K12*C12","v":0},null,null,null,null,null,null,null,{"$f":"SUM(M12:S12)","v":0},{"$f":"T12*C12","v":0}]
["Du","Duschewanne                     ",null,null,null,null,null,null,null,null,{"$f":"SUM(D13:J13)","v":0},{"$f":"K13*C12","v":0},null,null,null,null,null,null,null,0,{"$f":"T13*C12","v":0}]
["Ur","Urinoir, Pissoir                ",null,null,null,null,null,null,null,null,0,{"$f":"K14*C12","v":0},null,null,null,null,null,null,null,0,{"$f":"T14*C12","v":0}]
[null,"Wandbecken 4 - 10 Hahnen",null,null,null,null,null,null,null,null,0,{"$f":"K15*C12","v":0},null,null,null,null,null,null,null,0,{"$f":"T15*C12","v":0}]
[" ","Spülbecken, Spültisch Küche",null,null,null,null,null,null,null,null,0,{"$f":"K16*C12","v":0},null,null,null,null,null,null,null,0,{"$f":"T16*C12","v":0}]
["Sp","Doppelspülbecken, Doppelwaschtisch",null,null,null,null,null,null,null,null,0,{"$f":"K17*C12","v":0},null,null,null,null,null,null,null,0,{"$f":"T17*C12","v":0}]
[null,"Waschtrog, Waschküche",null,null,null,null,null,null,null,null,0,{"$f":"K18*C12","v":0},null,null,null,null,null,null,null,0,{"$f":"T18*C12","v":0}]
[" ","Haushalt-Geschirrspülmaschine"," ",null,null,null,null,null,null,null,0,0,null,null,null,null,null,null,null,0,0]
["WM","Haushalt-Waschmaschine bis 6 kg",null,null,null,null,null,null,null,null,0,{"$f":"K20*C12","v":0},null,null,null,null,null,null,null,0,{"$f":"T20*C12","v":0}]
["BA","Bodenwasserablauf LW 57",null,null,null,null,null,null,null,null,0,{"$f":"K21*C12","v":0},null,null,null,null,null,null,null,0,{"$f":"T21*C12","v":0}]
[null,"                                         "]
[null,"                                            "]
[" ","Geschirrspülmaschine (Gewerbe)",1.5,null,null,null,null,null,null,null,{"$f":"SUM(D24:J24)","v":0},{"$f":"K24*C24","v":0},null,null,null,null,null,null,null,{"$f":"SUM(M24:S24)","v":0},{"$f":"T24*C24","v":0}]
[" ","Waschmaschine 7 - 12 kg",null,null,null,null,null,null,null,null,0,{"$f":"K25*C24","v":0},null,null,null,null,null,null,null,0,{"$f":"T25*C24","v":0}]
["BA","Bodenwasserablauf LW 69",null,null,null,null,null,null,null,null,0,{"$f":"K26*C24","v":0},null,null,null,null,null,null,null,0,{"$f":"T26*C24","v":0}]
["WC","Klosettanlagen",2.5,null,null,null,null,null,null,null,0,{"$f":"K27*C27","v":0},null,null,null,null,null,null,null,0,{"$f":"T27*C27","v":0}]
[" ","Ausguss Fäkalien und Putzwasser"," ",null,null,null,null,null,null,null,0,{"$f":"K28*C27","v":0},null,null,null,null,null,null,null,0,{"$f":"T28*C27","v":0}]
[" ","Waschmaschine 13 - 40 kg",null,null,null,null,null,null,null,null,0,{"$f":"K29*C27","v":0},null,null,null,null,null,null,null,0,{"$f":"T29*C27","v":0}]
["BA","Bodenwasserablauf LW 80 - 100 ",null,null,null,null,null,null,null,null,0,{"$f":"K30*C27","v":0},null,null,null,null,null,null,null,0,{"$f":"T30*C27","v":0}]
[null,"Grossbadewanne, Saunatauchbecken"," ",null,null,null,null,null,null,null,0,{"$f":"K31*C27","v":0},null,null,null,null,null,null,null,0,{"$f":"T31*C27","v":0}]
[null,"                                               "]
[null,"                                             "]
[" ","                                        "," "]
[null,"                                          "]
["WAS","                                       ",null,"TOTAL  SW  IST-ZUSTAND",null,null,null,null,null,null,null,{"$f":"SUM(L9:L35)","v":0},"TOTAL  SW  NEUER  ZUSTAND",null,null,null,null,null,null,null,{"$f":"SUM(U9:U35)","v":0},{"$f":"U36-L36","v":0}]